Cogmind - Beta 13 @@@ ROGUE MODE // 2024.05.18 @ 03:15:33 Player: A Moose Result: Destroyed by S-27 Virus with Autogun Performance ------------- Evolutions (6) 3000 Regions Visited (21) 4200 Robots Destroyed (277) 1385 Value Destroyed (12506) 12506 Prototype IDs (55) 1100 Alien Tech Used (0) 0 Bonus (6673) 6673 TOTAL SCORE: 28864 Bonus ------- High Alert Combat Kills 1769 Follower Combat Kills 1734 Network Hubs Disabled 200 Met Data Miner 300 MAIN.C Attacked Warlord 500 Warlord Defense Kills 1950 Met R17 at Cetus 500 Friendly Fire -280 Cogmind --------- Core Integrity 0/1150 Matter 300/300 Energy 83/100 System Corruption 4% Temperature Hot (287) Movement Core (50) Location -4/Warlord Parts ------- > --- POWER (2) -------- (None) > --- PROPULSION (4) --- (None) > --- UTILITY (9) ------ (None) > --- WEAPON (4) ------- (None) > --- INVENTORY (5) ---- Hybrid Fission Core Energy Well (350) Compact Matter Pod (150) Improved Trap Scanner Peak State ------------ > --- POWER ------------ Neutrino Core Quantum Reactor > --- PROPULSION ------- Armored Medium Treads Armored Medium Treads Centrium Heavy Treads > --- UTILITY ---------- Advanced Cryofiber Web Advanced Heat Sink High-capacity Storage Unit Advanced Signal Interpreter Improved Phase Shifter Improved Medium Armor Plating Hacking Suite Improved Hacking Suite System Shield > --- WEAPON ----------- Vortex Rifle Vortex Rifle Heavy Gauss Cannon Heavy Gauss Cannon > --- INVENTORY -------- Hybrid Fission Core Light Antimatter Reactor Light Quantum Reactor Advanced Heat Sink Energy Well Advanced Energy Well Compact Matter Pod Matter Compressor Improved Trap Scanner Advanced Transmission Jammer Advanced ECM Suite Makeshift Cloaking Device Improved Medium Armor Plating Point Defense System System Shield Vortex Rail Vortex Rail Vortex Cannon Vortex Cannon RU-N14's Throwing Claymores v3 [Rating: 127] Favorites ----------- Power Particle Reactor Engine Reinforced Deuterium Engine Power Core Enhanced Nuclear Core Reactor Particle Reactor Propulsion Light Treads Treads Light Treads Leg Flexi-carbon Leg Wheel Wheel Hover Unit Antigrav System Utility Hacking Suite Device Advanced Heat Sink Storage Large Storage Unit Processor Improved Signal Interpreter Hackware Hacking Suite Protection Improved Medium Armor Plating Weapon Cooled Pulse Rifle Energy Gun Cooled Pulse Rifle Energy Cannon Heavy Plasma Cannon Ballistic Gun Gauss Rifle Ballistic Cannon Heavy Gauss Cannon Launcher Mini Smartbomb Launcher Special Weapon Flamer Build | -11 -10 -10 -10 -9 -8 -7 -7 -6 -6 -6 -6 -5 -5 -5 -5 -5 -5 -4 -4 -4 -4 ------- Run | Yrd Mat Min Exi Min Mat Fac Sto Fac Low Low Dat Pro Fac Ext Cet Arc Hub Fac Upp Upp War Slots Evolved 12 | . . . . . 4 2 . 2 . . . . 2 . . . . 2 . . . Power 1 | . . . . . . . . . . . . . . . . . . 1 . . . Propulsion 2 | . . . . . 1 . . . . . . . . . . . . 1 . . . Utility 7 | . . . . . 3 1 . 1 . . . . 2 . . . . . . . . Weapon 2 | . . . . . . 1 . 1 . . . . . . . . . . . . . Parts Attached 259 | 6 4 7 . 2 37 3 35 5 . 9 . 31 15 17 19 6 14 15 8 2 24 Power 24 | 1 1 1 . . 5 . 4 . . . . 3 . . 3 1 1 1 1 . 2 Engine 12 | 1 1 1 . . 5 . 2 . . . . 2 . . . . . . . . . Core 3 | . . . . . . . 2 . . . . . . . . . . . 1 . . Reactor 9 | . . . . . . . . . . . . 1 . . 3 1 1 1 . . 2 Propulsion 57 | 2 . 2 . . 11 1 8 1 . . . 3 6 5 4 1 2 4 2 1 4 Treads 34 | 2 . 2 . . 11 1 4 . . . . . . 2 3 1 2 3 1 . 2 Leg 7 | . . . . . . . . . . . . 2 2 . . . . 1 1 1 . Wheel 14 | . . . . . . . 4 1 . . . 1 4 3 1 . . . . . . Hover 2 | . . . . . . . . . . . . . . . . . . . . . 2 Flight . | . . . . . . . . . . . . . . . . . . . . . . Utility 106 | 1 2 1 . . 12 2 8 3 . 8 . 20 7 8 8 2 8 6 4 1 5 Device 54 | . . 1 . . 8 1 3 1 . 5 . 14 3 4 2 1 4 2 2 1 2 Storage 10 | 1 2 . . . . . . . . . . 4 1 . 1 . 1 . . . . Processor 7 | . . . . . 4 . . . . . . . . 1 1 . . 1 . . . Hackware 5 | . . . . . . . . 1 . . . . 2 . . . . 2 . . . Protection 30 | . . . . . . 1 5 1 . 3 . 2 1 3 4 1 3 1 2 . 3 Artifact . | . . . . . . . . . . . . . . . . . . . . . . Weapon 72 | 2 1 3 . 2 9 . 15 1 . 1 . 5 2 4 4 2 3 4 1 . 13 Energy Gun 28 | 1 . 1 . 1 3 . 4 . . . . 1 1 4 1 . 2 3 . . 6 Energy Cannon 11 | . 1 . . . 1 . 1 1 . 1 . 2 1 . 1 . . . . . 2 Ballistic Gun 16 | 1 . 2 . 1 5 . 3 . . . . . . . 1 2 . 1 . . . Ballistic Cannon 5 | . . . . . . . 2 . . . . . . . . . . . . . 3 Launcher 9 | . . . . . . . 5 . . . . 1 . . 1 . 1 . 1 . . Special Weapon 3 | . . . . . . . . . . . . 1 . . . . . . . . 2 Impact Weapon . | . . . . . . . . . . . . . . . . . . . . . . Slashing Weapon . | . . . . . . . . . . . . . . . . . . . . . . Piercing Weapon . | . . . . . . . . . . . . . . . . . . . . . . Special Melee Weapon . | . . . . . . . . . . . . . . . . . . . . . . Unidentified Prototypes 23 | . . . . . 1 . 8 . . 1 . 5 . 1 2 . . . . . 5 Parts Lost 117 | . 1 4 . . 21 . 16 1 . 7 . 10 3 6 8 2 9 2 6 3 18 Power 10 | . 1 1 . . 3 . 1 . . . . . . . . . 1 . 1 . 2 Propulsion 31 | . . 2 . . 8 . 4 . . 1 . 2 1 2 3 . . 1 2 1 4 Utility 45 | . . . . . 5 . 8 1 . 4 . 4 1 3 4 1 4 . 3 1 6 Weapon 31 | . . 1 . . 5 . 3 . . 2 . 4 1 1 1 1 4 1 . 1 6 Highest Loss Streak 10 | . 1 2 . . 7 . 9 1 . 5 . 3 2 3 3 2 5 2 5 3 10 To Critical Strikes 2 | . . . . . . . . . . . . . . . 2 . . . . . . Average Slot Usage (%) 86 | . 84 88 71 100 89 92 85 80 80 71 60 81 95 97 91 90 90 87 79 85 87 Engine 3 | . 13 11 14 14 8 7 6 . . . . 1 5 5 . . . . . . . Core 1 | . . . . . . . . 6 6 6 6 . . . . . . . 1 5 4 Reactor 2 | . . . . . . . . . . . . 4 . . 4 5 4 10 5 5 4 Treads 9 | . 28 26 28 28 24 23 15 . . . . . . 4 4 11 11 10 6 5 5 Leg 2 | . . . . . . . . . . . . 7 8 . . . . . . 9 8 Wheel 4 | . . . . . . . 5 13 13 10 6 5 6 11 4 . . . . . . Device 13 | . . 9 14 14 15 7 7 13 13 8 6 16 21 15 8 5 14 12 12 17 14 Storage 9 | . 14 14 14 14 9 7 7 6 6 6 6 15 11 11 11 10 5 5 5 5 4 Processor 3 | . . . . . 13 23 11 . . . . . . . . 5 5 5 5 5 4 Hackware 8 | . . . . . . . . 5 6 6 6 6 16 17 17 17 14 15 15 15 14 Protection 4 | . . . . . . 7 7 6 6 7 6 2 . 6 12 11 8 7 5 . 4 Energy Gun 6 | . 6 3 . 14 3 . 1 20 20 14 6 . . 9 9 5 6 10 5 . 8 Energy Cannon 6 | . 7 8 . . 3 . 3 6 6 8 13 15 15 5 4 5 2 . . . . Ballistic Gun 4 | . 14 14 . 14 10 15 6 . . . . . . . 1 5 10 1 5 5 . Launcher 2 | . . . . . . . 2 . . . . 1 5 5 5 1 . 5 9 10 . Naked Turns 9 | . . . . . . . . . . . . . . . . . . . . . 9 Heaviest Build 125 | 13 30 31 25 31 45 53 63 62 62 68 58 84 98 104 113 107 103 110 106 106 125 Greatest Support 160 | 40 40 40 40 40 60 62 62 40 40 40 28 56 36 42 100 108 108 160 131 108 134 Greatest Overweight (x) 10 | . . 1 . . 10 . 5 1 1 2 2 8 9 9 3 1 . . 1 1 1 Average Overweight (x) 1 | . . . . . . . 1 1 1 1 2 4 7 4 1 . . . . . . Largest Inventory Capacity 20 | 8 15 15 15 15 15 15 15 15 15 15 15 15 20 20 20 20 20 20 20 20 20 Average Capacity 16 | 7 13 15 15 15 15 15 15 15 15 15 15 15 15 20 20 20 20 20 20 20 19 Most Carried 20 | 5 10 12 13 11 15 15 15 15 15 15 15 15 18 20 20 20 20 20 20 20 20 Average Carried 15 | 1 7 10 11 10 13 14 14 14 14 13 15 14 14 19 19 19 19 15 19 19 19 Final Capacity 20 | 8 15 15 15 15 15 15 15 15 15 15 15 15 20 20 20 20 20 20 20 20 5 Final Carried 20 | 2 10 9 12 10 14 15 15 15 15 15 15 12 18 20 20 20 17 19 20 19 4 Class Distribution -------------------- 39% | Scavenger-Tank 19% | Scavenger-Mutant 14% | Mutant 11% | Skirmisher 6% | Scavenger-Skirmisher 3% | Tank Dominant Class ---------------- Mutant | -10/Materials Mutant | -10/Mines Mutant | -10/Exiles Mutant | -9/Mines Scavenger-Mutant | -8/Materials Scavenger-Mutant | -7/Factory Scavenger-Skirmisher | -7/Storage Skirmisher | -6/Factory Skirmisher | -6/Lower Caves Skirmisher | -6/Lower Caves Tank | -6/Data Miner Scavenger-Mutant | -5/Proximity Caves Scavenger-Tank | -5/Factory Scavenger-Tank | -5/Extension Scavenger-Tank | -5/Cetus Scavenger-Tank | -5/Archives Scavenger-Tank | -5/Hub_04(d) Scavenger-Tank | -4/Factory Scavenger-Tank | -4/Upper Caves Scavenger-Tank | -4/Upper Caves Scavenger-Tank | -4/Warlord Resources | -11 -10 -10 -10 -9 -8 -7 -7 -6 -6 -6 -6 -5 -5 -5 -5 -5 -5 -4 -4 -4 -4 ----------- Run | Yrd Mat Min Exi Min Mat Fac Sto Fac Low Low Dat Pro Fac Ext Cet Arc Hub Fac Upp Upp War Matter Collected 9614 | 224 308 284 . 34 843 174 1596 194 . 536 . 2259 195 468 223 271 464 368 568 26 579 Remotely . | . . . . . . . . . . . . . . . . . . . . . . Salvage Created 11724 | . 387 154 . 63 2205 24 1970 662 238 568 . 559 581 758 329 368 1287 369 788 134 280 Parts 510 | . 28 13 . 1 115 1 102 17 9 21 . 22 24 34 13 8 34 19 25 13 11 Haulers Intercepted 10 | . 1 . . . 4 . 3 2 . . . . . . . . . . . . . Recyclers Shooed 4 | . . . . . . . 2 . . . . . 1 . . . 1 . . . . Parts Field Recycled . | . . . . . . . . . . . . . . . . . . . . . . Retrieved Matter . | . . . . . . . . . . . . . . . . . . . . . . Parts Self-Destructed 112 | . . . . . . . . . 13 20 . 45 . . . . . . 25 9 . Prevented 6 | . . . . . . . . . . . . . . . . . . . 5 1 . Kills | -11 -10 -10 -10 -9 -8 -7 -7 -6 -6 -6 -6 -5 -5 -5 -5 -5 -5 -4 -4 -4 -4 ------- Run | Yrd Mat Min Exi Min Mat Fac Sto Fac Low Low Dat Pro Fac Ext Cet Arc Hub Fac Upp Upp War Combat Hostiles Destroyed 230 | . 11 12 . . 37 . 50 7 5 9 . 11 6 10 7 4 19 6 16 7 13 Guns 110 | . 7 10 . . 27 . 9 2 2 7 . 3 . 4 4 1 16 3 11 2 2 Cannons 65 | . 4 2 . . 10 . 22 4 3 2 . 7 5 1 1 2 . . . . 2 AOE 47 | . . . . . . . 18 . . . . . 1 3 2 . 1 3 5 5 9 Classes Destroyed 21 | . 5 1 . 1 7 . 3 . . 1 . 1 1 . . . . . . . 1 Worker 14 | . 2 . . . 1 . 7 . . . . . 2 . . . 1 1 . . . Builder 3 | . . . . . . . . . . . . . 1 2 . . . . . . . Hauler 10 | . 1 . . . 4 . 3 2 . . . . . . . . . . . . . Recycler 6 | . . . . 1 . . . . . . . . 2 3 . . . . . . . Mechanic 2 | . . . . . . . 2 . . . . . . . . . . . . . . Operator 6 | . 1 . . . 1 . 2 1 . . . . . . . . 1 . . . . Watcher 12 | . . . . . 3 1 2 1 . . . . . . 2 . 1 2 . . . Swarmer 37 | . 6 5 . . 2 . 4 . 2 . . 3 . 3 . . . 2 5 5 . Grunt 89 | . 5 . . . 18 . 23 3 . 7 . 2 3 . . . 15 . 7 . 6 Brawler 10 | . . . . . 3 . 4 . 1 . . . . . . . 1 . . . 1 Duelist 10 | . . . . . 2 . 4 . 1 . . . . . . . 1 . 2 . . Protector 4 | . . . . . . . 2 . . . . 2 . . . . . . . . . Sentry 33 | . . . . . 6 . 10 1 1 . . 1 . 4 . 4 2 2 2 . . Demolisher 3 | . . . . . . . . . . . . 3 . . . . . . . . . Specialist 4 | . . . . . 2 . . . . . . . . . . . . . . . 2 Hunter 11 | . . . . . 3 . 1 2 . . . . 1 2 . . . 2 . . . Programmer 11 | . . . . . . . 2 1 . 1 . . 2 . . . . . . 2 3 Heavy 1 | . . . . . 1 . . . . . . . . . . . . . . . . Behemoth 2 | . . . . . . . . . . 1 . . . 1 . . . . . . . Cetus Guard 7 | . . . . . . . . . . . . . . . 7 . . . . . . Striker 1 | . . . . . . . . . . . . . . . . . . . . . 1 Assembled 7 | . . 7 . . . . . . . . . . . . . . . . . . . Savage 1 | . . . . . . . . . . . . . . . 1 . . . . . . Best Kill Streak 19 | . 4 3 . 1 10 1 19 3 5 3 . 2 2 8 5 1 5 3 8 7 11 Combat Bots Only 16 | . 3 3 . . 8 . 16 3 5 3 . 2 1 3 4 1 4 2 8 7 11 Max Kills in Single Turn 4 | . 2 2 . 1 1 1 3 1 1 1 . 1 2 1 2 1 3 2 2 4 3 Gunslinging . | . . . . . . . . . . . . . . . . . . . . . . Exploded 4 | . . . . . . . 3 . . . . . 1 1 1 . 1 2 2 4 3 Melee . | . . . . . . . . . . . . . . . . . . . . . . Uniques/NPCs Destroyed . | . . . . . . . . . . . . . . . . . . . . . . Combat | -11 -10 -10 -10 -9 -8 -7 -7 -6 -6 -6 -6 -5 -5 -5 -5 -5 -5 -4 -4 -4 -4 -------- Run | Yrd Mat Min Exi Min Mat Fac Sto Fac Low Low Dat Pro Fac Ext Cet Arc Hub Fac Upp Upp War Hostile Shots Fired 1959 | . 48 49 . . 206 . 529 26 25 82 . 51 68 87 116 36 134 80 76 25 321 Missed 650 | . 15 14 . . 67 . 193 8 8 26 . 10 24 19 28 7 34 33 26 12 126 Damage Taken 22670 | . 361 593 . . 2535 21 3318 271 233 1291 . 1388 464 968 1878 773 2407 933 1093 307 3836 Core 3069 | . 57 99 . . 414 . 297 14 5 137 . 165 67 93 223 49 287 89 71 18 984 Absorbed by Shields 1171 | . . . . . . . . . . . . 162 162 355 492 . . . . . . Ignored by Resistances 180 | . . . . . . . . . . . . 8 90 76 6 . . . . . . Regen/Repaired (Parts) 1350 | . . . . . . . . . . . . . 141 173 226 209 197 . . . 404 Core Remaining (%) 51 | 100 . . . 37 24 . 57 . . . . 62 . . . . 28 . . . . Volleys Fired 788 | . 42 36 . 2 136 4 114 25 11 43 . 49 38 40 55 22 66 30 31 14 30 Largest 4 | . 2 2 . 2 2 2 3 4 4 4 . 3 3 3 3 3 4 3 3 3 4 Hottest 270 | . 80 88 . 88 138 56 121 90 90 140 . 270 270 252 252 213 248 244 154 154 202 Shots Fired 1673 | . 84 54 . 4 248 8 265 88 44 137 . 90 62 76 73 50 169 55 59 19 88 Gun 1029 | . 54 46 . 4 189 8 95 63 33 92 . 7 4 36 48 30 163 52 55 13 37 Cannon 583 | . 30 8 . . 59 . 150 25 11 45 . 83 56 28 17 20 5 . . . 46 Launcher 56 | . . . . . . . 20 . . . . . 2 12 8 . 1 3 4 6 . Special 5 | . . . . . . . . . . . . . . . . . . . . . 5 Kinetic 652 | . 42 39 . 2 137 8 194 . . . . . . . 13 21 108 13 24 10 41 Thermal 918 | . 42 15 . 2 111 . 51 88 44 137 . 90 60 64 52 29 60 39 31 3 . Explosive 61 | . . . . . . . 20 . . . . . 2 12 8 . 1 3 4 6 5 Electromagnetic . | . . . . . . . . . . . . . . . . . . . . . . Entropic 42 | . . . . . . . . . . . . . . . . . . . . . 42 Robot Hit Streak 23 | . 6 5 . 2 15 3 13 13 16 23 . 6 13 15 12 9 14 10 8 4 11 Robot Miss Streak 8 | . 4 3 . 1 6 2 8 2 5 5 . 3 3 3 3 3 4 3 5 3 6 Penetration Max 2 | . . . . . 1 . 1 . . . . . . . . 1 2 1 . . 1 Secondary Targets 7 | . . . . . 5 . . . . 2 . . . . . . . . . . . Max Gunslinging Chain 1 | . . . . . 1 . . . . 1 . . . . . . . . . . . Shots Hit Robots 1047 | . 45 32 . 2 177 4 162 65 22 72 . 55 38 47 55 31 110 37 32 9 52 Core Hits 616 | . 19 19 . 1 80 2 164 22 9 27 . 29 19 30 40 11 45 20 37 10 32 Critical Kills 6 | . . . . . 1 1 1 . . . . 1 . . . 1 . . 1 . . Critical Parts Destroyed 7 | . . . . . 2 1 . . . . . . . . . . 2 . . . 2 Critical Strikes 38 | . . . . . 5 2 7 3 . 5 . 1 . 1 1 1 2 . 3 . 7 Burn 15 | . . . . . 2 . 1 3 . 5 . . . 1 1 . . . 2 . . Meltdown 2 | . . . . . . . . . . . . 1 . . . 1 . . . . . Destroy 9 | . . . . . 3 2 1 . . . . . . . . . 2 . 1 . . Blast 9 | . . . . . . . 5 . . . . . . . . . . . . . 4 Sever 1 | . . . . . . . . . . . . . . . . . . . . . 1 Detonate 2 | . . . . . . . . . . . . . . . . . . . . . 2 Melee Attacks . | . . . . . . . . . . . . . . . . . . . . . . Impact . | . . . . . . . . . . . . . . . . . . . . . . Slashing . | . . . . . . . . . . . . . . . . . . . . . . Piercing . | . . . . . . . . . . . . . . . . . . . . . . Sneak Attacks . | . . . . . . . . . . . . . . . . . . . . . . Combat Hostiles . | . . . . . . . . . . . . . . . . . . . . . . Follow-up Attacks . | . . . . . . . . . . . . . . . . . . . . . . Damage Inflicted 37033 | . 687 533 . 46 3684 77 7221 1398 461 1664 . 1905 1519 2417 2132 1001 4146 1308 1561 686 4587 Guns 15634 | . 398 459 . 46 2528 77 1299 959 327 1081 . 95 74 595 847 502 3271 877 819 178 1202 Cannons 11369 | . 289 74 . . 1150 . 2416 439 134 583 . 1810 1291 823 480 499 135 . . . 1246 Explosions 9895 | . . . . . . . 3506 . . . . . 154 999 805 . 740 431 742 508 2010 Melee . | . . . . . . . . . . . . . . . . . . . . . . Ramming 6 | . . . . . 6 . . . . . . . . . . . . . . . . Kinetic 10291 | . 354 392 . 14 1967 77 3006 . . . . . . . 204 325 2259 234 320 114 1025 Thermal 16018 | . 333 141 . 32 1711 . 709 1398 461 1664 . 1905 1365 1603 1384 676 1147 643 499 64 283 Explosive 8506 | . . . . . . . 3506 . . . . . 154 814 544 . 80 431 742 508 1727 Electromagnetic 660 | . . . . . . . . . . . . . . . . . 660 . . . . Impact . | . . . . . . . . . . . . . . . . . . . . . . Slashing 129 | . . . . . . . . . . . . . . . . . . . . . 129 Piercing . | . . . . . . . . . . . . . . . . . . . . . . Entropic 1423 | . . . . . . . . . . . . . . . . . . . . . 1423 Highest Corruption 10 | . . 2 2 2 . . 7 . . . . . 1 1 1 1 10 . . 4 4 Average Corruption 1 | . . 2 2 2 . . 2 . . . . . 1 1 1 1 4 . . 2 1 Corruption Purged 8 | . . . . . . . . . . . . . . . . . 5 . . 3 . Corruption Blocked . | . . . . . . . . . . . . . . . . . . . . . . Effects 70 | . . 2 3 8 . . 4 . . . . . 3 13 9 4 19 . . 2 3 Message Errors 9 | . . . 1 . . . . . . . . . 1 3 2 . 2 . . . . Matter Fused 12 | . . . . 3 . . 1 . . . . . . 2 2 . 3 . . . 1 Heat Flow Errors 13 | . . 1 . 2 . . 1 . . . . . 1 2 1 . 3 . . . 2 Energy Discharges 10 | . . . 1 1 . . . . . . . . 1 2 1 1 2 . . 1 . Parts Rejected 2 | . . 1 . . . . . . . . . . . . 1 . . . . . . Data Loss (minor) 10 | . . . 1 2 . . . . . . . . . . 1 1 5 . . . . Data Loss (major) 5 | . . . . . . . . . . . . . . 3 . . 2 . . . . Misfires 4 | . . . . . . . 2 . . . . . . 1 . 1 . . . . . Weapon Failures 5 | . . . . . . . . . . . . . . . 1 1 2 . . 1 . Overload Shots . | . . . . . . . . . . . . . . . . . . . . . . Overflow Damage 557 | . 20 . . . 20 . 157 . . 46 . 1 55 51 29 . 110 13 10 . 45 Projectiles 251 | . 20 . . . 20 . 102 . . 46 . 1 55 7 . . . . . . . Explosions 306 | . . . . . . . 55 . . . . . . 44 29 . 110 13 10 . 45 Melee . | . . . . . . . . . . . . . . . . . . . . . . Knockbacks 19 | . . . . . . . 9 . . . . . . . . . . . . . 10 Impact . | . . . . . . . . . . . . . . . . . . . . . . Kinetic 17 | . . . . . . . 9 . . . . . . . . . . . . . 8 Secondary 2 | . . . . . . . . . . . . . . . . . . . . . 2 Self-Inflicted Damage 286 | . . . . . . . 71 . . . . . . 41 . . 107 12 . 55 . Shots 7 | . . . . . . . 3 . . . . . . 1 . . 1 1 . 1 . Rammed 1 | . . . . . 1 . . . . . . . . . . . . . . . . Targets Rammed 1 | . . . . . 1 . . . . . . . . . . . . . . . . Kicked . | . . . . . . . . . . . . . . . . . . . . . . Crushed . | . . . . . . . . . . . . . . . . . . . . . . Highest Temperature 392 | . 204 257 . 241 199 . 392 159 174 231 . 308 360 345 372 368 252 351 276 36 249 Average Temperature 91 | . 62 50 . 93 50 . 85 42 65 78 . 101 119 99 163 162 104 88 61 16 100 Received Heat Transfer 4631 | . 159 40 . . 873 . 867 69 30 339 . 174 90 124 96 63 675 63 328 . 641 Effects 18 | . . . . . . . 2 . . . . . . . 10 1 2 2 . . 1 Shutdowns 2 | . . . . . . . 1 . . . . . . . . . . 1 . . . Energy Bleed 5 | . . . . . . . 1 . . . . . . . . 1 1 1 . . 1 Interference 11 | . . . . . . . . . . . . . . . 10 . 1 . . . . Siege Activations . | . . . . . . . . . . . . . . . . . . . . . . Robots Corrupted 2 | . . . . . . . . . . . . . . . . . 2 . . . . Combat Hostiles 2 | . . . . . . . . . . . . . . . . . 2 . . . . Parts Fried 6 | . . . . . . . . . . . . . . . . . 6 . . . . Impact Corruptions . | . . . . . . . . . . . . . . . . . . . . . . Robots Melted 7 | . . . . . . . 1 3 . . . 1 . 1 . 1 . . . . . Combat Hostiles 5 | . . . . . . . 1 1 . . . 1 . 1 . 1 . . . . . Parts Melted 46 | . . 1 . . 4 . 1 14 2 5 . 6 . 2 1 5 1 1 3 . . Heat Transferred 21466 | . 692 296 . 74 3071 . 1073 2627 814 3210 . 1374 848 1199 1573 972 1469 999 851 74 250 Parts Sabotaged . | . . . . . . . . . . . . . . . . . . . . . . Parts Stolen . | . . . . . . . . . . . . . . . . . . . . . . Parts Stripped . | . . . . . . . . . . . . . . . . . . . . . . Power Chain Reactions 4 | . . . . . . . . . . . . . . 3 1 . . . . . . Alert | -11 -10 -10 -10 -9 -8 -7 -7 -6 -6 -6 -6 -5 -5 -5 -5 -5 -5 -4 -4 -4 -4 ------- Run | Yrd Mat Min Exi Min Mat Fac Sto Fac Low Low Dat Pro Fac Ext Cet Arc Hub Fac Upp Upp War Peak Influence 1524 | . 315 262 . 5 565 281 1524 1370 . . . . 603 526 293 203 676 488 . . . Initial 693 | . . 122 . . 1 256 36 693 . . . . . 295 231 54 . 321 . . . Average 396 | . 84 142 . 1 285 245 904 1095 . . . . 407 396 193 167 392 410 . . . Maximum Alert Level 4 | . 1 1 . . 2 1 4 4 . . . . 2 2 1 1 2 2 . . . Low Security (%) 28 | 100 79 67 . 100 27 13 18 . . . . . 6 . 38 32 22 . . . . Level 1 34 | . 20 32 . . 47 86 5 . . . . . 46 54 61 67 5 48 . . . Level 2 24 | . . . . . 24 . 10 14 . . . . 47 45 . . 72 51 . . . Level 3 3 | . . . . . . . 17 25 . . . . . . . . . . . . . Level 4 9 | . . . . . . . 47 60 . . . . . . . . . . . . . Level 5 . | . . . . . . . . . . . . . . . . . . . . . . High Security . | . . . . . . . . . . . . . . . . . . . . . . Max Security . | . . . . . . . . . . . . . . . . . . . . . . Squads Dispatched 46 | . 3 . . . 11 . 14 5 . . . 1 6 3 . . 3 . . . . Investigation 18 | . 1 . . . 4 . 3 5 . . . . 4 1 . . . . . . . Extermination 4 | . . . . . . . 2 . . . . . 2 . . . . . . . . Reinforcement 13 | . 2 . . . 4 . 4 . . . . . . 1 . . 2 . . . . Assault 7 | . . . . . . . 4 . . . . 1 . 1 . . 1 . . . . Garrison 4 | . . . . . 3 . 1 . . . . . . . . . . . . . . Intercept . | . . . . . . . . . . . . . . . . . . . . . . Searches Triggered . | . . . . . . . . . . . . . . . . . . . . . . Construction Impeded 2 | . . . . . . . 1 . . . . . . 1 . . . . . . . Haulers Reinforced 1 | . . . . . . . . . . . . . . . . . 1 . . . . Active Scanning Responses 3 | . . . . . . . 1 2 . . . . . . . . . . . . . Cargo Convoy Interrupts . | . . . . . . . . . . . . . . . . . . . . . . Stealth | -11 -10 -10 -10 -9 -8 -7 -7 -6 -6 -6 -6 -5 -5 -5 -5 -5 -5 -4 -4 -4 -4 --------- Run | Yrd Mat Min Exi Min Mat Fac Sto Fac Low Low Dat Pro Fac Ext Cet Arc Hub Fac Upp Upp War Distress Signals 34 | . . . . . 5 . 3 2 . . . 17 1 . 2 . 2 2 . . . Communications Jammed 37 | . . . . . . . . . . . . . . . . . . 37 . . . Distress Signals 37 | . . . . . . . . . . . . . . . . . . 37 . . . Times Spotted 391 | . 17 16 . . 56 2 63 11 5 13 . 26 23 24 9 10 36 15 19 7 39 Peak Tracking Total 18 | . 5 4 . . 7 2 8 3 4 3 . 7 6 5 5 2 9 5 9 5 18 Tactical Retreats 18 | . 2 2 . . 2 . 1 . . 2 . . 2 1 . . 4 1 . . 1 Traps | -11 -10 -10 -10 -9 -8 -7 -7 -6 -6 -6 -6 -5 -5 -5 -5 -5 -5 -4 -4 -4 -4 ------- Run | Yrd Mat Min Exi Min Mat Fac Sto Fac Low Low Dat Pro Fac Ext Cet Arc Hub Fac Upp Upp War Traps Triggered 11 | . 1 1 . . . 1 2 2 . . . 1 1 1 . . . 1 . . . Indirectly . | . . . . . . . . . . . . . . . . . . . . . . Trap Hack Attempts . | . . . . . . . . . . . . . . . . . . . . . . Triggered . | . . . . . . . . . . . . . . . . . . . . . . Disarmed . | . . . . . . . . . . . . . . . . . . . . . . Reprogrammed 17 | . . . . . . . . . . . . . . 17 . . . . . . . Reused 5 | . . . . . . . . . . . . . . 5 . . . . . . . Traps Extracted . | . . . . . . . . . . . . . . . . . . . . . . Installed . | . . . . . . . . . . . . . . . . . . . . . . Triggered 37 | . . . . . . . . . . . . . . 5 . . . . 2 . 30 Machines | -11 -10 -10 -10 -9 -8 -7 -7 -6 -6 -6 -6 -5 -5 -5 -5 -5 -5 -4 -4 -4 -4 ---------- Run | Yrd Mat Min Exi Min Mat Fac Sto Fac Low Low Dat Pro Fac Ext Cet Arc Hub Fac Upp Upp War Machines Disabled 38 | . 1 1 . . 2 . 8 1 . . . 3 6 3 . 3 5 3 1 . 1 Max in Single Turn 3 | . 1 1 . . 1 . 1 1 . . . 1 3 1 . 1 3 1 1 . 1 Garrison Access 8 | . . . . . 1 . 1 3 . . . . 1 . . . 1 1 . . . Network Hub 1 | . . . . . . . . . . . . . . . . . 1 . . . . Energy Cycler 2 | . . . . . . . . . . . . . . 2 . . . . . . . Machines Repaired . | . . . . . . . . . . . . . . . . . . . . . . Machines Dismantled . | . . . . . . . . . . . . . . . . . . . . . . Machines Sabotaged . | . . . . . . . . . . . . . . . . . . . . . . Overloaded Fab Kills . | . . . . . . . . . . . . . . . . . . . . . . Hacking | -11 -10 -10 -10 -9 -8 -7 -7 -6 -6 -6 -6 -5 -5 -5 -5 -5 -5 -4 -4 -4 -4 --------- Run | Yrd Mat Min Exi Min Mat Fac Sto Fac Low Low Dat Pro Fac Ext Cet Arc Hub Fac Upp Upp War Machines Accessed 59 | . 3 1 . . 10 3 3 9 . 1 4 . 9 2 2 1 4 4 1 . 2 Terminals 30 | . 3 . . . 7 2 2 3 . . . . 3 2 2 . 3 3 . . . Fabricators 6 | . . . . . . . . 3 . . . . 3 . . . . . . . . Repair Stations 2 | . . . . . . 1 . . . . . . 1 . . . . . . . . Recycling Units . | . . . . . . . . . . . . . . . . . . . . . . Scanalyzers 3 | . . . . . 2 . . . . . . . 1 . . . . . . . . Garrison Access 8 | . . . . . 1 . 1 3 . . . . 1 . . . 1 1 . . . Total Hacks 193 | . 4 1 . . 29 6 6 18 . 1 26 . 27 12 3 25 17 10 2 . 6 Successful 134 | . 2 1 . . 15 4 3 6 . 1 26 . 17 8 2 25 8 8 2 . 6 Failed 58 | . 2 . . . 14 2 3 12 . . . . 10 4 1 . 8 2 . . . Catastrophic 5 | . . . . . . 1 1 1 . . . . 2 . . . . . . . . Database Lockouts 1 | . . . . . . . . . . . . . . . . . 1 . . . . Manual 38 | . 4 . . . 12 4 1 5 . . . . 4 2 . . 6 . . . . Terminals 96 | . 4 . . . 26 5 5 7 . . . . 10 12 3 . 15 9 . . . Fabricators 18 | . . . . . . . . 6 . . . . 12 . . . . . . . . Repair Stations 4 | . . . . . . 1 . . . . . . 3 . . . . . . . . Recycling Units . | . . . . . . . . . . . . . . . . . . . . . . Scanalyzers 3 | . . . . . 2 . . . . . . . 1 . . . . . . . . Garrison Access 11 | . . . . . 1 . 1 5 . . . . 1 . . . 2 1 . . . Terminal Hacks 108 | . 2 1 . . 11 1 2 2 . 1 26 . 6 8 2 25 6 7 2 . 6 Record 41 | . . . . . . . . . . . 11 . . . 1 25 . 2 2 . . Part Schematic 10 | . . . . . . . 1 . . . 8 . . . . . . 1 . . . Robot Schematic 4 | . . . . . . . . . . . 4 . . . . . . . . . . Robot Analysis 8 | . 2 . . . . . . 1 . . . . 4 . . . 1 . . . . Prototype ID Bank 15 | . . . . . 5 1 . . . . 3 . 1 . . . . . . . 5 Open Door 5 | . . 1 . . . . 1 . . 1 . . . . 1 . . . . . 1 Open DSF 1 | . . . . . . . . . . . . . . . . . . 1 . . . Branch Access Points 2 | . . . . . 1 . . . . . . . . . . . . 1 . . . Emergency Access Points 3 | . . . . . 3 . . . . . . . . . . . . . . . . Terminal Index 1 | . . . . . . . . . . . . . . 1 . . . . . . . Fabricator Index 1 | . . . . . . . . . . . . . . . . . 1 . . . . Alert Level 3 | . . . . . . . . 1 . . . . . . . . 1 1 . . . Locate Traps 5 | . . . . . 1 . . . . . . . 1 1 . . 1 1 . . . Reprogram Traps 3 | . . . . . . . . . . . . . . 3 . . . . . . . Recall Investigation 1 | . . . . . . . . . . . . . . 1 . . . . . . . Recall Reinforcements 1 | . . . . . . . . . . . . . . 1 . . . . . . . Recall Assault 1 | . . . . . . . . . . . . . . 1 . . . . . . . Zone Layout 3 | . . . . . 1 . . . . . . . . . . . 2 . . . . Fabricator Hacks 7 | . . . . . . . . 1 . . . . 6 . . . . . . . . Network Status 2 | . . . . . . . . 1 . . . . 1 . . . . . . . . Load Schematic 2 | . . . . . . . . . . . . . 2 . . . . . . . . Build 3 | . . . . . . . . . . . . . 3 . . . . . . . . Repair Station Hacks 2 | . . . . . . . . . . . . . 2 . . . . . . . . Scan Component 1 | . . . . . . . . . . . . . 1 . . . . . . . . Repair 1 | . . . . . . . . . . . . . 1 . . . . . . . . Recycling Unit Hacks . | . . . . . . . . . . . . . . . . . . . . . . Scanalyzer . | . . . . . . . . . . . . . . . . . . . . . . Garrison Access Hacks 5 | . . . . . 1 . . 1 . . . . 1 . . . 1 1 . . . Seal Access 5 | . . . . . 1 . . 1 . . . . 1 . . . 1 1 . . . Unauthorized Hacks 12 | . . . . . 3 3 1 2 . . . . 2 . . . 1 . . . . Terminals 5 | . . . . . 1 2 . . . . . . 1 . . . 1 . . . . Botnet 5 | . . . . . 1 2 . . . . . . 1 . . . 1 . . . . Fabricators . | . . . . . . . . . . . . . . . . . . . . . . Repair Stations 1 | . . . . . . 1 . . . . . . . . . . . . . . . Mechanics 1 | . . . . . . 1 . . . . . . . . . . . . . . . Recycling Units . | . . . . . . . . . . . . . . . . . . . . . . Scanalyzers 3 | . . . . . 2 . . . . . . . 1 . . . . . . . . Extract 3 | . . . . . 2 . . . . . . . 1 . . . . . . . . Garrison Access 3 | . . . . . . . 1 2 . . . . . . . . . . . . . Jam 3 | . . . . . . . 1 2 . . . . . . . . . . . . . Data Cores Recovered 1 | . . . . . . . . 1 . . . . . . . . . . . . . Used . | . . . . . . . . . . . . . . . . . . . . . . Hacking Detections 31 | . 2 . . . 6 2 2 8 . . . . 6 2 . . 1 2 . . . Full Trace Events 6 | . . . . . 2 . . 1 . . . . 2 1 . . . . . . . Feedback Events . | . . . . . . . . . . . . . . . . . . . . . . Feedback Blocked . | . . . . . . . . . . . . . . . . . . . . . . Robot Schematics Acquired 4 | . . . . . . . . . . . 4 . . . . . . . . . . Robots Built 2 | . . . . . . . . . . . . . 2 . . . . . . . . Authchips . | . . . . . . . . . . . . . . . . . . . . . . Time 93 | . . . . . . . . . . . . . 93 . . . . . . . . Total Robot Build Rating 14 | . . . . . . . . . . . . . 14 . . . . . . . . Part Schematics Acquired 22 | . . . . . 6 . 1 . . . 8 . 6 . . . . 1 . . . Parts Built 4 | . . . . . . . . . . . . . 4 . . . . . . . . Authchips . | . . . . . . . . . . . . . . . . . . . . . . Time 138 | . . . . . . . . . . . . . 138 . . . . . . . . Total Part Build Rating 36 | . . . . . . . . . . . . . 36 . . . . . . . . Parts Repaired 1 | . . . . . . . . . . . . . 1 . . . . . . . . Time 44 | . . . . . . . . . . . . . 44 . . . . . . . . Parts Recycled . | . . . . . . . . . . . . . . . . . . . . . . Recycled Matter . | . . . . . . . . . . . . . . . . . . . . . . Retrieved Matter . | . . . . . . . . . . . . . . . . . . . . . . Retrieved Components . | . . . . . . . . . . . . . . . . . . . . . . Parts Scanalyzed . | . . . . . . . . . . . . . . . . . . . . . . Part Schematics Acquired . | . . . . . . . . . . . . . . . . . . . . . . Parts Damaged . | . . . . . . . . . . . . . . . . . . . . . . Bothacking | -11 -10 -10 -10 -9 -8 -7 -7 -6 -6 -6 -6 -5 -5 -5 -5 -5 -5 -4 -4 -4 -4 ------------ Run | Yrd Mat Min Exi Min Mat Fac Sto Fac Low Low Dat Pro Fac Ext Cet Arc Hub Fac Upp Upp War Used RIF Installer . | . . . . . . . . . . . . . . . . . . . . . . Robots Hacked . | . . . . . . . . . . . . . . . . . . . . . . Non-combat . | . . . . . . . . . . . . . . . . . . . . . . Combat . | . . . . . . . . . . . . . . . . . . . . . . Robot Hacks Applied . | . . . . . . . . . . . . . . . . . . . . . . Relay Couplers Released . | . . . . . . . . . . . . . . . . . . . . . . Fabnet Peak Effective % . | . . . . . . . . . . . . . . . . . . . . . . Robots Rewired 22 | . . . . . . . . . . . . 4 . 11 . . . . 2 . 5 Allies Hacked . | . . . . . . . . . . . . . . . . . . . . . . Hacks Repelled . | . . . . . . . . . . . . . . . . . . . . . . Allies | -11 -10 -10 -10 -9 -8 -7 -7 -6 -6 -6 -6 -5 -5 -5 -5 -5 -5 -4 -4 -4 -4 -------- Run | Yrd Mat Min Exi Min Mat Fac Sto Fac Low Low Dat Pro Fac Ext Cet Arc Hub Fac Upp Upp War Total Allies 30 | . . . . . . . 2 . . . . 6 2 13 . . . . 2 . 5 Largest Group 7 | . . . . . . . 2 . . . . 3 3 7 7 . . . 2 . 5 Highest-Rated Group 269 | . . . . . . . 62 . . . . 197 197 177 177 . . . 95 . 269 Highest-Rated Ally 99 | . . . . . . . 31 . . . . 99 99 39 31 . . . 48 . 65 Total Orders . | . . . . . . . . . . . . . . . . . . . . . . Ally Attacks 232 | . . . . . . . 18 . . . . 57 61 33 15 . . . 17 . 31 Total Damage 7443 | . . . . . . . 251 . . . . 2044 2509 694 220 . . . 353 . 1372 Kills 49 | . . . . . . . . . . . . 14 20 6 1 . . . 3 . 5 Allies Corrupted 1 | . . . . . . . . . . . . . 1 . . . . . . . . Allies Melted . | . . . . . . . . . . . . . . . . . . . . . . Intel | -11 -10 -10 -10 -9 -8 -7 -7 -6 -6 -6 -6 -5 -5 -5 -5 -5 -5 -4 -4 -4 -4 ------- Run | Yrd Mat Min Exi Min Mat Fac Sto Fac Low Low Dat Pro Fac Ext Cet Arc Hub Fac Upp Upp War Robot Analysis Total 8 | . 2 . . . . . . 1 . . . . 4 . . . 1 . . . . Derelict Logs Recovered 8 | . . 1 . 1 . . . . 2 1 . 2 . . . . . . 1 . . Drone Launches . | . . . . . . . . . . . . . . . . . . . . . . Drone Recoveries . | . . . . . . . . . . . . . . . . . . . . . . Exploration | -11 -10 -10 -10 -9 -8 -7 -7 -6 -6 -6 -6 -5 -5 -5 -5 -5 -5 -4 -4 -4 -4 ------------- Run | Yrd Mat Min Exi Min Mat Fac Sto Fac Low Low Dat Pro Fac Ext Cet Arc Hub Fac Upp Upp War Turns Passed 18594 | 74 684 626 261 745 1712 461 1007 922 673 1380 101 2050 1512 1016 653 421 773 643 1049 278 1553 Spaces Moved 9294 | 44 337 309 161 448 743 267 381 687 560 880 78 938 713 523 216 201 335 331 425 102 615 Core 27 | 8 . . . . 3 . . . . . . . . . . . . . . . 16 Treads 4625 | 36 337 309 161 448 740 267 168 . . . . . . . 185 201 335 331 425 102 580 Legs 305 | . . . . . . . . . . . . 305 . . . . . . . . . Wheels 4318 | . . . . . . . 213 687 560 880 78 633 713 523 31 . . . . . . Hover 19 | . . . . . . . . . . . . . . . . . . . . . 19 Flight . | . . . . . . . . . . . . . . . . . . . . . . Fastest Speed 50 | 50 160 160 160 160 160 161 105 105 110 110 130 115 116 116 123 160 160 160 160 160 50 Average Speed 162 | 140 160 165 160 160 164 165 149 108 110 118 130 179 186 151 224 169 160 160 221 239 224 Slowest Speed 550 | 160 160 240 160 160 550 166 240 110 110 130 130 260 215 215 240 240 160 160 240 240 245 Overloaded Moves . | . . . . . . . . . . . . . . . . . . . . . . Propulsion Burnouts . | . . . . . . . . . . . . . . . . . . . . . . Robots Hopped . | . . . . . . . . . . . . . . . . . . . . . . Cave-ins Triggered . | . . . . . . . . . . . . . . . . . . . . . . Exploration Rate (%) 53 | 4 41 57 56 78 54 6 61 19 76 82 68 90 18 74 81 95 43 11 58 27 78 Regions Visited 21 Branch Regions 15 Pre-discovered Areas 4 | . . 1 . 1 . . . . 1 . 1 . . . . . . . . . . Known Exits Taken 12 | . . . . . 1 1 1 1 1 . . . 1 . 1 1 1 1 1 1 . Unknown Exits Taken 9 | 1 1 1 1 1 . . . . . 1 1 1 . 1 . . . . . . . Scrap Searched 15 | . . 1 . 1 . . . . 6 3 . 1 . . . . . . 2 1 . Spaces Dug 17 | . . . . . . . . . 6 7 . . 4 . . . . . . . . Terrain Destroyed 959 | . . . . . 11 . 228 4 6 12 . 5 47 90 126 8 199 35 11 47 130 Melee . | . . . . . . . . . . . . . . . . . . . . . . Projectile 209 | . . . . . 11 . 35 4 6 12 . 5 17 8 9 8 31 4 3 5 51 AOE 750 | . . . . . . . 193 . . . . . 30 82 117 . 168 31 8 42 79 Terrain Rammed . | . . . . . . . . . . . . . . . . . . . . . . Walls Destroyed . | . . . . . . . . . . . . . . . . . . . . . . Machines Disabled . | . . . . . . . . . . . . . . . . . . . . . . Actions | -11 -10 -10 -10 -9 -8 -7 -7 -6 -6 -6 -6 -5 -5 -5 -5 -5 -5 -4 -4 -4 -4 --------- Run | Yrd Mat Min Exi Min Mat Fac Sto Fac Low Low Dat Pro Fac Ext Cet Arc Hub Fac Upp Upp War Total 11352 | 57 399 373 167 473 989 283 599 809 591 1117 77 1217 824 680 314 240 436 396 473 118 720 Wait 582 | . . 17 . 22 24 . 21 62 15 178 . 144 44 27 13 . 13 . 1 . 1 Move 9273 | 43 336 308 160 447 742 266 380 686 559 879 77 937 712 522 215 200 334 330 424 101 615 Hop . | . . . . . . . . . . . . . . . . . . . . . . Pick Up 194 | 8 13 5 3 . 34 5 26 9 3 3 . 18 11 11 7 5 5 16 4 1 7 Fast Attach 56 | . . . . . 4 . 9 . . . . 9 6 7 3 2 3 . 3 . 10 Attach 134 | 6 3 6 . 2 22 2 17 3 . 7 . 18 4 5 7 1 6 11 3 2 9 Detach 18 | . . . 2 . . 1 2 . . 3 . 4 . 2 1 . . 1 . . 2 Swap 69 | . 1 1 . . 11 1 9 2 . 2 . 4 5 5 9 3 5 4 2 . 5 Drop 118 | . 4 . 2 . 15 4 21 6 3 1 . 14 4 11 4 7 4 4 . . 14 Fire 788 | . 42 36 . 2 136 4 114 25 11 43 . 49 38 40 55 22 66 30 31 14 30 Melee . | . . . . . . . . . . . . . . . . . . . . . . Ram . | . . . . . . . . . . . . . . . . . . . . . . Kick . | . . . . . . . . . . . . . . . . . . . . . . Crush 1 | . . . . . 1 . . . . . . . . . . . . . . . . Escape Stasis 29 | . . . . . . . . 16 . . . 5 . 8 . . . . . . . Rewire 90 | . . . . . . . . . . 1 . 15 . 42 . . . . 5 . 27 Trap . | . . . . . . . . . . . . . . . . . . . . . . Miscellaneous . | . . . . . . . . . . . . . . . . . . . . . . Route ------- -11/Scrapyard -10/Materials (discovered 3 exits: [*Mat x2] / *Min) -10/Mines (discovered 2 exits: [*Mat] / [*Exi]) -10/Exiles -9/Mines -8/Materials -7/Factory -7/Storage -6/Factory -6/Lower Caves -6/Lower Caves -6/Data Miner -5/Proximity Caves -5/Factory (discovered 6 exits: *Fac x3 / Upp / *Ext x2) -5/Extension (discovered 3 exits: *Fac x2 / *Cet) -5/Cetus (discovered 2 exits: *Fac / *Arc) -5/Archives (discovered 3 exits: *Fac / *Hub x2) -5/Hub_04(d) (discovered 2 exits: *Fac x2) -4/Factory (discovered 3 exits: *Upp x2 / Arm) -4/Upper Caves -4/Upper Caves (discovered 2 exits: *Res / *War) -4/Warlord (discovered 1 exit: *Pro) History --------- Turn | Location | Event 9 | -11/Scrapyard | Discovered new exit (range 16) 75 | -11/Scrapyard | Entered Materials 117 | -10/Materials | Discovered new exit (range 8) 272 | -10/Materials | Discovered new exit (range 7) 311 | -10/Materials | Build established: Mutant 707 | -10/Materials | Discovered new exit (range 15) 759 | -10/Materials | Entered Mines 895 | -10/Mines | Discovered new exit (range 7) 904 | -10/Mines | Met a Derelict who couldn't figure out how to use a Trap Extractor 1069 | -10/Mines | Learned location of Zion (-7) 1094 | -10/Mines | Assembled infested the area 1146 | -10/Mines | Core integrity fell below 50% 1378 | -10/Mines | Deemed a non-threat by the Exiles lab entrance 1378 | -10/Mines | Discovered new exit (range 5) 1385 | -10/Mines | Entered Exiles 1425 | -10/Exiles | Met 8R-AWN 1454 | -10/Exiles | Met EX-HEX 1497 | -10/Exiles | Met EX-BIN 1530 | -10/Exiles | Met EX-DEC 1630 | -10/Exiles | Discovered new exit (range 10) 1646 | -10/Exiles | Entered Mines 1865 | -9/Mines | Learned Materials terminal intel 2378 | -9/Mines | Discovered new exit (range 9) 2379 | -9/Mines | Learned location of Storage (-7) 2391 | -9/Mines | Entered Materials 2391 | -8/Materials | Evolved 4 slots: Propulsion x1, Utility x3 2392 | -8/Materials | Loaded intel: 12 terminal locations 2745 | -8/Materials | Lost 5 parts (1p2n1u1w) 2748 | -8/Materials | Destroyed 7 combat bots 2858 | -8/Materials | Discovered new exit (range 10) 2908 | -8/Materials | Build established: Scavenger-Mutant 3089 | -8/Materials | Identified exit to Factory 3590 | -8/Materials | Garrison activated, responded to threat 3592 | -8/Materials | Core integrity fell below 50% 3593 | -8/Materials | Lost 7 parts (4n3u) 3648 | -8/Materials | Destroyed 8 combat bots 3654 | -8/Materials | Found Prototype Device 3657 | -8/Materials | Lost 3 parts (1p2w) 4103 | -8/Materials | Entered Factory 4103 | -7/Factory | Evolved 2 slots: Utility x1, Weapon x1 4500 | -7/Factory | Discovered new exit (range 16) 4522 | -7/Factory | Identified exit to Storage 4564 | -7/Factory | Entered Storage 4734 | -7/Storage | Garrison activated, responded to threat 4815 | -7/Storage | Destroyed 7 combat bots 4846 | -7/Storage | Met a pair of Derelict thieves 4853 | -7/Storage | Found Prototype Launcher 4853 | -7/Storage | Identified Rocket Array 4964 | -7/Storage | First assault squad dispatched 4993 | -7/Storage | Destroyed 16 combat bots 4996 | -7/Storage | Lost 9 parts (1p3n3u2w) 5023 | -7/Storage | Identified Active Sensor Suite 5120 | -7/Storage | Destroyed 8 combat bots 5325 | -7/Storage | Build established: Scavenger-Skirmisher 5445 | -7/Storage | Destroyed 8 combat bots 5449 | -7/Storage | Lost 3 parts (1n1u1w) 5511 | -7/Storage | Discovered new exit (range 14) 5524 | -7/Storage | Identified exit to Factory 5571 | -7/Storage | Entered Factory 5571 | -6/Factory | Evolved 2 slots: Utility x1, Weapon x1 6123 | -6/Factory | Build established: Skirmisher 6248 | -6/Factory | Discovered new exit (range 11) 6258 | -6/Factory | Identified exit to Lower Caves 6493 | -6/Factory | Entered Lower Caves 6582 | -6/Lower Caves | Attracted the attention of an 0b10 checkpoint 7150 | -6/Lower Caves | Discovered new exit (range 11) 7165 | -6/Lower Caves | Identified exit to Lower Caves 7166 | -6/Lower Caves | Entered another Lower Caves area 7871 | -6/Lower Caves | Spotted B-75 Beast 7954 | -6/Lower Caves | Learned 12 Factory zone layouts 7988 | -6/Lower Caves | Destroyed B-75 Beast 8008 | -6/Lower Caves | Lost 5 parts (1n2u2w) 8186 | -6/Lower Caves | Found Prototype Device 8187 | -6/Lower Caves | Identified Heart of Steel 8320 | -6/Lower Caves | Build established: Tank 8369 | -6/Lower Caves | Discovered new exit (range 13) 8546 | -6/Lower Caves | Entered Data Miner 8546 | -6/Data Miner | Discovered new exit (range 6) 8571 | -6/Data Miner | Met Data Miner 8600 | -6/Data Miner | Learned location of Section 7 (-2) 8600 | -6/Data Miner | Acquired the access code to Warlord's prototype stash 8619 | -6/Data Miner | Received God Mode back door access code from Data Miner 8647 | -6/Data Miner | Entered Proximity Caves 8713 | -5/Proximity Caves | Escorted by Enhanced Grunt 8738 | -5/Proximity Caves | Attracted the attention of an 0b10 outpost 8881 | -5/Proximity Caves | Found Prototype Device 8882 | -5/Proximity Caves | Identified Exp. Thermal Shield 8894 | -5/Proximity Caves | Lost 3 parts (1n2w) 9162 | -5/Proximity Caves | Build established: Scavenger-Mutant 9351 | -5/Proximity Caves | Lost 4 allies 9419 | -5/Proximity Caves | Lost 5 allies 9537 | -5/Proximity Caves | Lost 3 allies 9646 | -5/Proximity Caves | Lost 3 parts (1n2u) 9840 | -5/Proximity Caves | Learned location of 1 exit from Upper Caves 9852 | -5/Proximity Caves | Learned Factory emergency access door positions 10176 | -5/Proximity Caves | Build established: Scavenger-Tank 10312 | -5/Proximity Caves | Found Prototype Launcher 10313 | -5/Proximity Caves | Identified Mni. Smartbomb Launcher 10316 | -5/Proximity Caves | Found Mni. Smartbomb Launcher 10470 | -5/Proximity Caves | Discovered new exit (range 16) 10618 | -5/Proximity Caves | Heart of Steel transformed into Warbot 10697 | -5/Proximity Caves | Entered Factory 10697 | -5/Factory | Accompanied by 3 allies (Warbot) 10697 | -5/Factory | Evolved 2 slots: Utility x2 10698 | -5/Factory | Identified exit to Extension 10699 | -5/Factory | Identified exit to Factory 10699 | -5/Factory | Identified exit to Upper Caves 10838 | -5/Factory | Fabricated Lgt. Quantum Reactor? 10938 | -5/Factory | Fabricated Cmb. Linear Gravjet? 11407 | -5/Factory | Discovered exit to Factory (range 8) 11500 | -5/Factory | Fabricated H-77 Assassin? 11735 | -5/Factory | Repaired Neutron Cannon 12155 | -5/Factory | Discovered exit to Factory (range 15) 12209 | -5/Factory | Entered Extension 12256 | -5/Extension | Rescued a captive Derelict 12368 | -5/Extension | Energy Cycler disabled 12368 | -5/Extension | Rescued a captive Derelict 12368 | -5/Extension | Rescued a captive Derelict 12368 | -5/Extension | Rescued a captive Derelict 12369 | -5/Extension | Rescued a captive Derelict 12370 | -5/Extension | Rescued a captive Derelict 12370 | -5/Extension | Rescued a captive Derelict 12371 | -5/Extension | Rescued a captive Derelict 12374 | -5/Extension | Rescued a captive Derelict 12399 | -5/Extension | Lost 3 parts (2n1w) 12399 | -5/Extension | Lost 3 allies 12731 | -5/Extension | Spotted B-75 Beast 12788 | -5/Extension | Destroyed B-75 Beast 12809 | -5/Extension | First assault squad dispatched 12811 | -5/Extension | Discovered exit to Factory (range 15) 12868 | -5/Extension | Found Prototype Protection 12868 | -5/Extension | Identified Med. Regenerative Plating 13207 | -5/Extension | Discovered exit to Factory (range 10) 13208 | -5/Extension | Discovered new exit (range 6) 13225 | -5/Extension | Disrupted transfer network 13225 | -5/Extension | Entered Cetus 13225 | -5/Cetus | Accompanied by 7 allies 13244 | -5/Cetus | Spotted Cetus Guard 13244 | -5/Cetus | Spotted Cetus Guard 13249 | -5/Cetus | Spotted Cetus Guard 13255 | -5/Cetus | Spotted Cetus Guard 13259 | -5/Cetus | Allies destroyed Cetus Guard 13260 | -5/Cetus | Destroyed Cetus Guard 13270 | -5/Cetus | Destroyed Cetus Guard 13301 | -5/Cetus | Lost 6 allies 13315 | -5/Cetus | Destroyed Cetus Guard 13542 | -5/Cetus | Discovered new exit (range 16) 13625 | -5/Cetus | Spotted Cetus Guard 13625 | -5/Cetus | Spotted Cetus Guard 13633 | -5/Cetus | Spotted Cetus Guard 13650 | -5/Cetus | Destroyed Cetus Guard 13666 | -5/Cetus | Destroyed Cetus Guard 13669 | -5/Cetus | Spotted Cetus Guard 13683 | -5/Cetus | Destroyed Cetus Guard 13693 | -5/Cetus | Lost 3 parts (1n2u) 13701 | -5/Cetus | Destroyed Cetus Guard 13719 | -5/Cetus | Discovered exit to Factory (range 15) 13751 | -5/Cetus | Met Revision 17 13877 | -5/Cetus | Identified exit to Archives 13878 | -5/Cetus | Entered Archives 14010 | -5/Archives | Unable to access archive contents 14026 | -5/Archives | Unable to access archive contents 14028 | -5/Archives | Discovered new exit (range 16) 14051 | -5/Archives | Unable to access archive contents 14058 | -5/Archives | Discovered new exit (range 16) 14067 | -5/Archives | Unable to access archive contents 14070 | -5/Archives | Discovered exit to Factory (range 15) 14160 | -5/Archives | Identified exit to Hub_04(d) 14299 | -5/Archives | Entered Hub_04(d) 14472 | -5/Hub_04(d) | Network Hub disabled 14596 | -5/Hub_04(d) | Discovered exit to Factory (range 11) 14599 | -5/Hub_04(d) | First assault squad dispatched 14637 | -5/Hub_04(d) | Central database locked down 14664 | -5/Hub_04(d) | Disrupted transfer network 14684 | -5/Hub_04(d) | System corruption reached 10% 14696 | -5/Hub_04(d) | Core integrity fell below 50% 14750 | -5/Hub_04(d) | Lost 5 parts (1p2u2w) 15021 | -5/Hub_04(d) | Discovered exit to Factory (range 4) 15051 | -5/Hub_04(d) | Spotted Lightning 15052 | -5/Hub_04(d) | Spotted Lightning 15069 | -5/Hub_04(d) | Spotted Lightning 15072 | -5/Hub_04(d) | Entered Factory 15072 | -4/Factory | Evolved 2 slots: Power x1, Propulsion x1 15102 | -4/Factory | Lost 4 parts (2u2w) 15115 | -4/Factory | Identified exit to Upper Caves 15115 | -4/Factory | Identified exit to Armory 15167 | -4/Factory | Identified exit to DSF 15715 | -4/Factory | Entered Upper Caves 15716 | -4/Upper Caves | Identified exit to Upper Caves 15767 | -4/Upper Caves | Attracted the attention of an 0b10 outpost 15817 | -4/Upper Caves | Destroyed 8 combat bots 15824 | -4/Upper Caves | Lost 5 parts (1p2n2u) 16061 | -4/Upper Caves | Build established: Hacker-Skirmisher 16445 | -4/Upper Caves | Attracted the attention of an 0b10 checkpoint 16697 | -4/Upper Caves | Learned Research trap positions 16721 | -4/Upper Caves | Build established: Scavenger-Tank 16764 | -4/Upper Caves | Entered another Upper Caves area 16772 | -4/Upper Caves | Discovered new exit (range 14) 16809 | -4/Upper Caves | Lost 3 parts (1n1u1w) 16809 | -4/Upper Caves | Discovered new exit (range 10) 16823 | -4/Upper Caves | Destroyed 7 combat bots 16829 | -4/Upper Caves | Identified exit to Warlord 16979 | -4/Upper Caves | Identified exit to Research 17042 | -4/Upper Caves | Entered Warlord 17107 | -4/Warlord | Discovered new exit (range 12) 17129 | -4/Warlord | Identified exit to Proximity Caves 17203 | -4/Warlord | System corruption cleaned by Quarantine Array 17332 | -4/Warlord | Build established: Scavenger-Mutant 17558 | -4/Warlord | Visited the Vortex Lab 17565 | -4/Warlord | Warlord's base attacked by MAIN.C 17572 | -4/Warlord | Found Prototype Energy Gun 17572 | -4/Warlord | Identified Vortex Rifle 17576 | -4/Warlord | Found Vortex Rifle 17584 | -4/Warlord | Found Prototype Energy Cannon 17587 | -4/Warlord | Found Prototype Energy Cannon 17591 | -4/Warlord | Found Prototype Energy Gun 17592 | -4/Warlord | Identified Vortex Cannon (x2) 17593 | -4/Warlord | Identified Vortex Rail 17601 | -4/Warlord | Found Vortex Rail 17697 | -4/Warlord | Build established: Scavenger-Tank 17799 | -4/Warlord | Found Prototype Special Weapon 17799 | -4/Warlord | Identified RU-N14's Throwing Claymores v3 17915 | -4/Warlord | Warlord forces counterattacked 18240 | -4/Warlord | Warlord base infiltrated, sounded retreat 18390 | -4/Warlord | Spotted Executioner 18404 | -4/Warlord | Allies destroyed Executioner 18434 | -4/Warlord | Lost 3 allies 18460 | -4/Warlord | Spotted Striker 18480 | -4/Warlord | Destroyed Striker 18507 | -4/Warlord | Lost 3 allies 18541 | -4/Warlord | Lost 8 parts (1p4u3w) 18543 | -4/Warlord | Destroyed 11 combat bots 18546 | -4/Warlord | Spotted Striker 18568 | -4/Warlord | Core integrity fell below 50% 18568 | -4/Warlord | Spotted Executioner 18571 | -4/Warlord | Released all parts (9) 18577 | -4/Warlord | Core integrity fell below 20% 18595 | -4/Warlord | Destroyed by S-27 Virus with Autogun Last Messages --------------- Released Vortex Cannon. Released Centrium Light Armor Plating. Slug penetrates Wall. Penetrated by Slug. Slug penetrates Earth. The unstable cave ceiling collapses. Acquired Unknown Hover Unit. Identified Antigrav System. Acquired Imp. Antigrav System. The unstable cave ceiling collapses. Imp. Antigrav System destroyed. Acquired 61 matter. Acquired 5 matter. Imp. Medium Armor Plating destroyed. Antigrav System destroyed. Acquired 68 matter. Acquired 12 matter. P-80 Master resets D-63 Destroyer, system corruption cleaned. System corrupted: Heat flow error (+287). Map ----- +----------------------------------------------------+ | "#"#""#""" ##???????????## ##?# ?? | | % " # ######?????## ### ##? | | &=![ [ """"#??????## # ##?? | | ![*=*= *![[[ """"#?####?## #???? | | =]% /[== *=%%= ### ### ##??? | | %= %=%|[=%[! = = ^+ ## #??? | | ! %=%[%!% %= !% ^+ #### #??? | | == ===!! %=[ = !% #### ##??# #??? | | *[ !%|*" =*|= = """""#??## #???# ##?? | | = [= "" """""#???# #?### #?? | | ! "" "###"########???# #### # #?? | | = "###""#####?????????????;;% #?# #?? | | ##?#""#?????????????????; ### #?? | | ##??#""#????????????????? ### ##?? | | ###????""#????????????????# ##?# ^ #??? | | # #????""????????????????? ???## ##??? | | #??????????????????????? ????##^ #???? | | =##????????????????????##? #?????# #???? | | ##????????????????????# # #?????## ##??? | | %#????????????????????? ;;= ;?????## #??? | | #???????????????????###;[% ?????## #??? | | ##???????????????????? ; %p ?????# #??? | | #?????????????????####; ;??????# ] #??? | | ####??????????????## ;% ;;??????# #??? | | #??????????????# p#??????# #??? | | #??????????????# p@##?????## ##??? | | #??????????????# ##= #?????? #???? | | #??????????????????## #?????? ##???? | | #??????????????????# ##??????####????? | | #??????????????????# d##???????????????? | | #?????????????????## [##???????????????? | | #????????????????##;!%"##??????????????? | | ###??????????????# ; *# #??????????????? | | #??????????????##;s " #??????????????? | | #####????###?????##; s" #??????????????? | | ######%####??# ; " #??????????????? | | ! !"=" #%""""#####;g " #??????????????? | | !] ###??????????????? | | ! *[= #????????????????? | | |[% "# """""""######????????????????? | | # ! # ##?????????????????????? | | # ### #######??????????????????????? | | # ####### ## ????????????????????????????? | | # ???????# ###????????????????????????????? | | ##?????????#??????????????????????????????? | | | | | | | | | | | +----------------------------------------------------+ Best States ------------- Heat Dissipation 97 Energy Generation 43 Energy Capacity 1175 Matter Stores 440 Matter Capacity 450 Sight Range 16 Robot Scan Range 20 Terrain Scan Range 16 Terrain Scan Density 10 ECM Strength 2 Jamming Range 16 Base Temperature (-) 200 Armor Coverage 675 Resistance: TH 30 Resistance: EX 50 Resistance: EM 15 Core Shielding 20 Point Defense Rating 80 Phase Shifting 10 Evasion (%) 53 Targeting Accuracy 5 Armor Integrity Analysis 30 Recoil Reduction 4 Energy Filtering 30 Particle Charging 25 Offensive Hacking 22 Defensive Hacking 14 Item Schematics ----------------- Aerolev Unit | -8/Materials | Extracted Beam Rifle | -8/Materials | Extracted Adv. Targeting Computer | -8/Materials | Extracted Axe | -8/Materials | Extracted Titanium Leg | -8/Materials | Extracted Lgt. Cannon | -8/Materials | Extracted Imp. Transmission Jammer | -7/Storage | Hacked Combat Drone Bay | -6/Data Miner | Free Lgt. Regenerative Plating | -6/Data Miner | Free Enh. Armored Leg | -6/Data Miner | Free Imp. Matter Compressor | -6/Data Miner | Free Enh. Coil Gun | -6/Data Miner | Free Centrium Wheel | -6/Data Miner | Free Imp. Force Field | -6/Data Miner | Free Phase Gun | -6/Data Miner | Free KE Penetrator | -5/Factory | Extracted Enh. Fission Core | -5/Factory | Extracted Imp. Coolant Injector | -5/Factory | Extracted Imp. Recalibrator | -5/Factory | Extracted Prc. Grenade Launcher | -5/Factory | Extracted Launcher Guidance Computer | -5/Factory | Extracted Adv. Force Field | -4/Factory | Hacked Robot Schematics ------------------ A-15 Conveyor | -6/Data Miner | Free Y-54 Guardian | -6/Data Miner | Free H-66 Slayer | -6/Data Miner | Free H-77 Assassin | -6/Data Miner | Free Fabricated ------------ Lgt. Quantum Reactor | x2 | -5/Factory | Preloaded Cmb. Linear Gravjet | x2 | -5/Factory | Preloaded H-77 Assassin | x2 | -5/Factory Alien Tech Used ----------------- None Achievements -------------- None Challenges ------------ None Game ------ Seed GhostFactoryInjector Manual? 0 Play Time 03:35:12 Cumulative 106.9 hours Start 2024.05.16 @ 22:50:47 End 2024.05.18 @ 03:15:33 Sessions 7 Manual Loads 0 Difficulty Rogue Special Mode None Game No. 108 Rogue 99 Adventurer 9 Explorer 0 Win Type - Total 0 Types 0/0/0/0/0/0/0/0/0 Lore% 54 Gallery% 62 Achievement% 47 Wizard Run 0 Options --------- Layout 1 ASCII 0 Keyboard 0 Movement Mouse Keybinds 0 Fullscreen 1 Font 24/Smallcaps Map View 50x35 Zoom Use 0% Tactical HUD 0 Map Filters NONE Filters NONE Steam 1 RUN: ffbe04a2-e3a5-4ce5-a499-adb92ab30b2f